fUSD/lending_fUSD_20240518
["ID","MTS","AMOUNT","RATE_DAILY","PERIOD"]
[327412800,1716050242459,-198.31,0.00017259,2]
[327412801,1716050643083,164.49,0.00013973,2]
[327412808,1716051006299,10000.0,0.0003,90]
[327412809,1716051031293,155.0,0.00017259,2]
[327412813,1716051032112,-157.42,0.00024249,2]
[327412814,1716051032122,-165.81372397,0.0002436,2]
[327412815,1716051032131,-672.64173479,0.00025,2]
[327412816,1716051032143,-77.35826521,0.00025,2]
[327412817,1716051032152,-186.520838,0.0002569,2]
[327412818,1716051032161,-165.81372396,0.0002582,2]
[327412819,1716051032171,-499.99,0.0002582,2]
[327412820,1716051032181,-160.0,0.0002587,2]
[327412821,1716051032190,-81.77536183,0.00025897,2]
[327412822,1716051032206,-168.22463817,0.00025897,2]
[327412823,1716051032216,-624.45,0.00025937,2]
[327412824,1716051032225,-250.0,0.00026105,2]
[327412825,1716051032235,-250.0,0.00026116,2]
[327412826,1716051032245,-150.0,0.00026247,2]
[327412827,1716051032255,-435.1,0.00026264,2]
[327412828,1716051032264,-305.93142265,0.000268,2]
[327412829,1716051032274,-1566.93540349,0.0002707,2]
[327412830,1716051032284,-1861.1028,0.00027178,2]
[327412831,1716051032294,-416.3052,0.000272,2]
[327412832,1716051032303,-162.69961985,0.00027277,2]
[327412833,1716051032313,-6011.29092473,0.00027278,2]
[327412834,1716051032325,-1933.01489927,0.00027278,2]
[327412835,1716051032337,-2933.91684557,0.00027278,2]
[327412836,1716051032360,-12271.2622233,0.00027278,2]
[327412837,1716051032371,-428.73814136,0.00027278,2]
[327412838,1716051032383,-600.0,0.00027278,2]
[327412839,1716051032394,-13782.69396577,0.00027278,2]
[327412840,1716051032404,-1000.0,0.00027278,2]
[327412841,1716051032592,-7324.334,0.00027278,2]
[327412843,1716051032602,-12311.97203823,0.00027278,2]
[327412844,1716051032614,-566.55211337,0.00027278,2]
[327412845,1716051032625,-740.58240107,0.00027278,2]
[327412846,1716051032637,-500.53973003,0.00027278,2]
[327412847,1716051032656,-1047.0,0.00027278,2]
[327412848,1716051032668,-4654.44,0.00027278,2]
[327412849,1716051032679,-68380.86,0.00027278,2]
[327412850,1716051032698,-11798.0537173,0.00027278,2]
[327412851,1716051032707,-43758.2948,0.00027278,2]
[327412852,1716051032716,-165.81372396,0.00027279,2]
[327412854,1716051032726,-10000.0,0.00027297,2]
[327412856,1716051032735,-50000.0,0.00027368,2]
[327412859,1716051032745,-1980.86610102,0.00027378,5]
[327412862,1716051032755,-466.23800503,0.00027378,2]
[327412864,1716051032764,-372.14853349,0.00027378,2]
[327412866,1716051032774,-443174.63870562,0.00027378,2]
[327412868,1716051032784,-1200.65717,0.00027379,2]
[327412870,1716051032793,-503.1255895,0.00027397,2]
[327412872,1716051032804,-500.0,0.00027397,2]
[327412873,1716051032814,-500.0,0.00027397,2]
[327412874,1716051032823,-500.0,0.00027397,2]
[327412875,1716051032833,-505.29045493,0.00027397,2]
[327412876,1716051032842,-548.90499645,0.00027397,2]
[327412877,1716051032852,-512.51236384,0.00027397,2]
[327412878,1716051032862,-500.0,0.00027397,2]
[327412879,1716051032871,-505.03469438,0.00027397,2]
[327412880,1716051032881,-500.0,0.00027397,2]
[327412881,1716051032891,-200.0,0.00027397,2]
[327412882,1716051032901,-513.81956627,0.00027397,2]
[327412883,1716051032911,-512.68424748,0.00027397,2]
[327412884,1716051032921,-500.0,0.00027397,2]
[327412885,1716051032930,-500.0,0.00027397,2]
[327412886,1716051032940,-500.0,0.00027397,2]
[327412887,1716051032950,-445.75269073,0.00027397,2]
[327412888,1716051032959,-501.9089843,0.00027397,2]
[327412889,1716051032969,-510.7727339,0.00027397,2]
[327412890,1716051032978,-503.33239476,0.00027397,2]
[327412891,1716051032989,-519.45493871,0.00027397,2]
[327412892,1716051032999,-503.17503734,0.00027397,2]
[327412893,1716051033009,-385.11210877,0.00027397,2]
[327412894,1716051033018,-501.03813198,0.00027397,2]
[327412895,1716051033028,-500.58446456,0.00027397,2]
[327412896,1716051033039,-501.94841184,0.00027397,2]
[327412897,1716051033048,-500.0,0.00027397,2]
[327412898,1716051033058,-333.40655061,0.00027397,2]
[327412899,1716051033069,-502.02087654,0.00027397,2]
[327412900,1716051033079,-500.0,0.00027397,2]
[327412901,1716051033088,-500.0,0.00027397,2]
[327412902,1716051033098,-500.0,0.00027397,2]
[327412903,1716051033108,-511.55320975,0.00027397,2]
[327412904,1716051033117,-507.94326768,0.00027397,2]
[327412905,1716051033127,-511.7631692,0.00027397,2]
[327412906,1716051033136,-502.15361776,0.00027397,2]
[327412907,1716051033146,-503.13456574,0.00027397,2]
[327412908,1716051033156,-502.09195299,0.00027397,2]
[327412909,1716051033165,-527.92883398,0.00027397,2]
[327412910,1716051033176,-500.16770709,0.00027397,2]
[327412911,1716051033186,-505.73684331,0.00027397,2]
[327412912,1716051033195,-236.31082467,0.00027397,2]
[327412913,1716051033205,-504.93058705,0.00027397,2]
[327412914,1716051033215,-500.0,0.00027397,2]
[327412915,1716051033224,-500.0,0.00027397,2]
[327412916,1716051033234,-500.0,0.00027397,2]
[327412917,1716051033243,-190.99219693,0.00027397,2]
[327412918,1716051033255,-500.0,0.00027397,2]
[327412919,1716051033264,-500.0,0.00027397,2]
[327412920,1716051033274,-151.0,0.00027397,7]
[327412921,1716051033284,-500.0,0.00027397,2]
[327412922,1716051033294,-151.0,0.00027397,7]
[327412923,1716051033304,-500.0,0.00027397,2]
[327412924,1716051033314,-501.53580808,0.00027397,2]
[327412925,1716051033324,-504.14503058,0.00027397,2]
[327412926,1716051033333,-500.0,0.00027397,2]
[327412927,1716051033343,-155.0,0.00027397,2]
[327412928,1716051033353,-504.06946754,0.00027397,2]
[327412929,1716051033363,-505.51674958,0.00027397,2]
[327412930,1716051033373,-510.32998865,0.00027397,2]
[327412931,1716051033383,-175.4842107,0.00027397,2]
[327412932,1716051033392,-500.0,0.00027397,2]
[327412933,1716051033402,-512.08523753,0.00027397,2]
[327412934,1716051033412,-500.0,0.00027397,2]
[327412935,1716051033421,-500.0,0.00027397,2]
[327412936,1716051033433,-500.0,0.00027397,2]
[327412937,1716051033443,-500.0,0.00027397,2]
[327412938,1716051033455,-500.0,0.00027397,2]
[327412939,1716051033466,-500.0,0.00027397,2]
[327412940,1716051033475,-500.0,0.00027397,2]
[327412941,1716051033486,-500.0,0.00027397,2]
[327412942,1716051033496,-500.0,0.00027397,2]
[327412943,1716051033506,-500.0,0.00027397,2]
[327412944,1716051033515,-530.36527041,0.00027397,2]
[327412945,1716051033525,-500.0,0.00027397,2]
[327412946,1716051033537,-408.57609447,0.00027397,2]
[327412947,1716051033548,-500.0,0.00027397,2]
[327412948,1716051033557,-500.0,0.00027397,2]
[327412949,1716051033568,-500.0,0.00027397,2]
[327412950,1716051033578,-504.17289718,0.00027397,2]
[327412951,1716051033587,-501.87332069,0.00027397,2]
[327412952,1716051033597,-151.0,0.00027397,7]
[327412953,1716051033607,-230.33960378,0.00027397,2]
[327412957,1716051038299,-263.8,0.00027397,2]
[327412958,1716051038402,-5.86039622,0.00027397,2]
[327412959,1716051038411,-500.0,0.00027397,2]
[327412960,1716051038420,-500.0,0.00027397,2]
[327412961,1716051038430,-500.0,0.00027397,2]
[327412962,1716051038439,-500.0,0.00027397,2]
[327412963,1716051038449,-516.83988584,0.00027397,2]
[327412964,1716051038462,-500.0,0.00027397,2]
[327412965,1716051038471,-500.0,0.00027397,2]
[327412966,1716051038480,-521.46234244,0.00027397,2]
[327412967,1716051038489,-501.52132995,0.00027397,2]
[327412968,1716051038499,-500.0,0.00027397,2]
[327412969,1716051038509,-500.0,0.00027397,2]
[327412970,1716051038518,-519.06653975,0.00027397,2]
[327412971,1716051038529,-500.0,0.00027397,2]
[327412972,1716051038538,-366.98697238,0.00027397,2]
[327412973,1716051038548,-156.08772152,0.00027397,2]
[327412974,1716051038557,-350.93706248,0.00027397,2]
[327412975,1716051038567,-500.0,0.00027397,2]
[327412976,1716051038576,-500.0,0.00027397,2]
[327412977,1716051038586,-500.0,0.00027397,2]
[327412978,1716051038595,-523.64092204,0.00027397,2]
[327412979,1716051038604,-500.0,0.00027397,2]
[327412980,1716051038614,-500.0,0.00027397,2]
[327412981,1716051038623,-303.31751001,0.00027397,2]
[327412982,1716051038632,-500.0,0.00027397,2]
[327412983,1716051038641,-523.45508047,0.00027397,2]
[327412984,1716051038650,-500.0,0.00027397,2]
[327412985,1716051038661,-504.31170558,0.00027397,2]
[327412986,1716051038671,-502.37820016,0.00027397,2]
[327412987,1716051038681,-500.0,0.00027397,2]
[327412988,1716051038690,-500.0,0.00027397,2]
[327412989,1716051038700,-286.363145,0.00027397,7]
[327412990,1716051038709,-506.65312694,0.00027397,2]
[327412991,1716051038719,-500.0,0.00027397,2]
[327412992,1716051038728,-515.94653453,0.00027397,2]
[327412993,1716051038737,-500.0,0.00027397,2]
[327412994,1716051038746,-500.0,0.00027397,2]
[327412995,1716051038755,-509.25095276,0.00027397,2]
[327412996,1716051038765,-505.66707024,0.00027397,2]
[327412997,1716051038775,-500.0,0.00027397,2]
[327412998,1716051038786,-504.1701565,0.00027397,2]
[327412999,1716051038795,-500.0,0.00027397,2]
[327413000,1716051038804,-500.0,0.00027397,2]
[327413001,1716051038813,-500.0,0.00027397,2]
[327413002,1716051038823,-500.0,0.00027397,2]
[327413003,1716051038832,-500.0,0.00027397,2]
[327413004,1716051038841,-500.0,0.00027397,2]
[327413005,1716051038850,-514.10169068,0.00027397,2]
[327413006,1716051038859,-503.43972539,0.00027397,2]
[327413007,1716051038870,-500.0,0.00027397,2]
[327413008,1716051038881,-500.0,0.00027397,2]
[327413009,1716051038891,-500.0,0.00027397,2]
[327413010,1716051038901,-504.45416113,0.00027397,2]
[327413011,1716051038910,-504.52304878,0.00027397,2]
[327413012,1716051038923,-500.0,0.00027397,2]
[327413013,1716051038934,-500.43633159,0.00027397,2]
[327413014,1716051038943,-531.381043,0.00027397,2]
[327413015,1716051038953,-500.0,0.00027397,2]
[327413016,1716051038962,-513.18111309,0.00027397,2]
[327413017,1716051038972,-500.0,0.00027397,2]
[327413018,1716051038982,-512.32207402,0.00027397,2]
[327413019,1716051038991,-500.0,0.00027397,2]
[327413020,1716051039000,-500.0,0.00027397,2]
[327413021,1716051039009,-500.0,0.00027397,2]
[327413022,1716051039019,-517.94339212,0.00027397,2]
[327413023,1716051039028,-520.78524218,0.00027397,2]
[327413024,1716051039037,-500.0,0.00027397,2]
[327413025,1716051039047,-508.7852094,0.00027397,2]
[327413026,1716051039056,-500.0,0.00027397,2]
[327413027,1716051039065,-501.71941114,0.00027397,2]
[327413028,1716051039075,-500.0,0.00027397,2]
[327413029,1716051039084,-500.57387274,0.00027397,2]
[327413030,1716051039094,-500.0,0.00027397,2]
[327413031,1716051039103,-409.35290028,0.00027397,2]
[327413032,1716051039112,-521.37912291,0.00027397,2]
[327413033,1716051039122,-500.0,0.00027397,2]
[327413034,1716051039131,-500.0,0.00027397,2]
[327413035,1716051039140,-500.0,0.00027397,2]
[327413036,1716051039149,-500.0,0.00027397,2]
[327413037,1716051039158,-500.0,0.00027397,2]
[327413038,1716051039168,-500.0,0.00027397,2]
[327413039,1716051039177,-151.02894602,0.00027397,2]
[327413040,1716051039187,-500.0,0.00027397,2]
[327413041,1716051039196,-155.0,0.00027397,2]
[327413042,1716051039205,-500.0,0.00027397,2]
[327413043,1716051039214,-500.0,0.00027397,2]
[327413044,1716051039223,-190.45977489,0.00027397,2]
[327413045,1716051039232,-500.0,0.00027397,2]
[327413046,1716051039241,-500.0,0.00027397,2]
[327413047,1716051039250,-501.53950398,0.00027397,2]
[327413048,1716051039259,-500.0,0.00027397,2]
[327413049,1716051039269,-500.60406963,0.00027397,2]
[327413050,1716051039278,-500.0,0.00027397,2]
[327413051,1716051039287,-500.0,0.00027397,2]
[327413052,1716051039297,-500.0,0.00027397,2]
[327413053,1716051039306,-500.0,0.00027397,2]
[327413054,1716051039315,-500.0,0.00027397,2]
[327413055,1716051039326,-410.67001209,0.00027397,2]
[327413056,1716051039335,-500.0,0.00027397,2]
[327413057,1716051039344,-500.0,0.00027397,2]
[327413058,1716051039353,-500.0,0.00027397,2]
[327413059,1716051039362,-500.0,0.00027397,2]
[327413060,1716051039371,-451.71193068,0.00027397,2]
[327413061,1716051039380,-500.0,0.00027397,2]
[327413062,1716051039390,-500.0,0.00027397,2]
[327413063,1716051039399,-500.0,0.00027397,2]
[327413064,1716051039409,-500.0,0.00027397,2]
[327413065,1716051039418,-500.0,0.00027397,2]
[327413066,1716051039428,-500.0,0.00027397,2]
[327413067,1716051039438,-524.81677659,0.00027397,2]
[327413068,1716051039447,-500.0,0.00027397,2]
[327413069,1716051039460,-500.0,0.00027397,2]
[327413070,1716051039469,-151.0,0.00027397,7]
[327413071,1716051039479,-500.0,0.00027397,2]
[327413072,1716051039488,-500.0,0.00027397,2]
[327413073,1716051039498,-500.0,0.00027397,2]
[327413074,1716051039508,-204.37917136,0.00027397,2]
[327413075,1716051039517,-500.0,0.00027397,2]
[327413076,1716051039527,-500.0,0.00027397,2]
[327413077,1716051039537,-500.0,0.00027397,2]
[327413078,1716051039546,-500.0,0.00027397,2]
[327413079,1716051039556,-210.24962429,0.00027397,2]
[327413080,1716051039565,-500.0,0.00027397,2]
[327413081,1716051039574,-500.0,0.00027397,2]
[327413082,1716051039583,-500.0,0.00027397,2]
[327413083,1716051039592,-500.0,0.00027397,2]
[327413084,1716051039602,-158.39,0.00027397,2]
[327413085,1716051039611,-500.0,0.00027397,2]
[327413086,1716051039620,-500.0,0.00027397,2]
[327413087,1716051039629,-500.0,0.00027397,2]
[327413088,1716051039638,-500.0,0.00027397,2]
[327413089,1716051039648,-500.0,0.00027397,2]
[327413090,1716051039656,-500.0,0.00027397,2]
[327413091,1716051039665,-500.0,0.00027397,2]
[327413092,1716051039675,-500.0,0.00027397,2]
[327413093,1716051039684,-500.0,0.00027397,2]
[327413094,1716051039694,-500.0,0.00027397,2]
[327413095,1716051039703,-500.0,0.00027397,2]
[327413096,1716051039712,-231.34,0.00027397,2]
[327413097,1716051039721,-500.0,0.00027397,2]
[327413098,1716051039730,-500.0,0.00027397,2]
[327413099,1716051039739,-500.0,0.00027397,2]
[327413100,1716051039750,-500.0,0.00027397,2]
[327413101,1716051039759,-500.0,0.00027397,2]
[327413102,1716051039768,-500.0,0.00027397,2]
[327413103,1716051039778,-500.0,0.00027397,2]
[327413104,1716051039787,-500.0,0.00027397,2]
[327413105,1716051039796,-500.0,0.00027397,2]
[327413106,1716051039806,-500.0,0.00027397,2]
[327413107,1716051039815,-500.0,0.00027397,2]
[327413108,1716051039825,-500.0,0.00027397,2]
[327413109,1716051039834,-500.0,0.00027397,2]
[327413110,1716051039844,-503.0834372,0.00027397,2]
[327413111,1716051039853,-500.0,0.00027397,2]
[327413112,1716051039863,-500.0,0.00027397,2]
[327413113,1716051039872,-500.0,0.00027397,2]
[327413114,1716051039881,-500.0,0.00027397,2]
[327413115,1716051039891,-500.0,0.00027397,2]
[327413116,1716051039900,-258.70376133,0.00027397,2]
[327413117,1716051039909,-500.0,0.00027397,2]
[327413118,1716051039918,-500.0,0.00027397,2]
[327413119,1716051039927,-500.0,0.00027397,2]
[327413120,1716051039936,-500.0,0.00027397,2]
[327413121,1716051039946,-151.0,0.00027397,7]
[327413122,1716051039954,-500.0,0.00027397,2]
[327413123,1716051039964,-500.0,0.00027397,2]
[327413124,1716051039973,-231.016968,0.00027397,7]
[327413125,1716051039982,-231.016968,0.00027397,7]
[327413126,1716051039991,-231.016968,0.00027397,7]
[327413127,1716051040000,-231.016968,0.00027397,7]
[327413128,1716051040009,-619.38467681,0.00027397,2]
[327413129,1716051040018,-571.17834999,0.00027397,2]
[327413130,1716051040027,-500.0,0.00027397,2]
[327413131,1716051040037,-231.016968,0.00027397,7]
[327413132,1716051040046,-500.0,0.00027397,2]
[327413133,1716051040055,-500.0,0.00027397,2]
[327413134,1716051040064,-231.016968,0.00027397,7]
[327413135,1716051040074,-231.016968,0.00027397,7]
[327413136,1716051040083,-231.016968,0.00027397,7]
[327413137,1716051040092,-500.0,0.00027397,2]
[327413138,1716051040101,-500.0,0.00027397,2]
[327413139,1716051040110,-500.0,0.00027397,2]
[327413140,1716051040120,-500.0,0.00027397,2]
[327413141,1716051040129,-500.0,0.00027397,2]
[327413142,1716051040138,-500.0,0.00027397,2]
[327413143,1716051040147,-500.0,0.00027397,2]
[327413144,1716051040156,-543.05114005,0.00027397,2]
[327413145,1716051040165,-151.0,0.00027397,7]
[327413146,1716051040175,-500.0,0.00027397,2]
[327413148,1716051040184,-151.0,0.00027397,7]
[327413149,1716051040195,-277.8452392,0.00027397,2]
[327413150,1716051040204,-500.0,0.00027397,2]
[327413151,1716051040213,-500.0,0.00027397,2]
[327413152,1716051040223,-500.0,0.00027397,2]
[327413153,1716051040232,-500.0,0.00027397,2]
[327413154,1716051040241,-500.0,0.00027397,2]
[327413155,1716051040250,-500.0,0.00027397,2]
[327413156,1716051040260,-512.99270509,0.00027397,2]
[327413157,1716051040269,-500.0,0.00027397,2]
[327413158,1716051040279,-500.0,0.00027397,2]
[327413159,1716051040288,-500.0,0.00027397,2]
[327413160,1716051040298,-500.0,0.00027397,2]
[327413161,1716051040308,-500.0,0.00027397,2]
[327413162,1716051040317,-523.71089806,0.00027397,2]
[327413163,1716051040327,-500.0,0.00027397,2]
[327413164,1716051040337,-500.0,0.00027397,2]
[327413165,1716051040346,-500.0,0.00027397,2]
[327413166,1716051040355,-151.66425985,0.00027397,2]
[327413167,1716051040365,-500.0,0.00027397,2]
[327413168,1716051040374,-500.0,0.00027397,2]
[327413169,1716051040384,-500.0,0.00027397,2]
[327413170,1716051040394,-151.0,0.00027397,7]
[327413171,1716051040404,-500.0,0.00027397,2]
[327413172,1716051040413,-500.0,0.00027397,2]
[327413173,1716051040422,-500.0,0.00027397,2]
[327413174,1716051040432,-500.0,0.00027397,2]
[327413175,1716051040441,-500.0,0.00027397,2]
[327413176,1716051040455,-647.22926359,0.00027397,2]
[327413177,1716051040465,-500.0,0.00027397,2]
[327413178,1716051040476,-500.0,0.00027397,2]
[327413179,1716051040487,-500.0,0.00027397,2]
[327413180,1716051040499,-500.0,0.00027397,2]
[327413181,1716051040509,-500.0,0.00027397,2]
[327413182,1716051040519,-151.0,0.00027397,7]
[327413183,1716051040529,-500.0,0.00027397,2]
[327413184,1716051040538,-2000.0,0.00027397,2]
[327413185,1716051040548,-500.0,0.00027397,2]
[327413186,1716051040558,-597.8,0.00027397,2]
[327413187,1716051040567,-517.59214438,0.00027397,2]
[327413188,1716051040578,-500.0,0.00027397,2]
[327413189,1716051040587,-500.0,0.00027397,2]
[327413190,1716051040597,-500.0,0.00027397,2]
[327413191,1716051040606,-500.0,0.00027397,2]
[327413192,1716051040616,-500.0,0.00027397,2]
[327413193,1716051040626,-500.0,0.00027397,2]
[327413194,1716051040635,-500.0,0.00027397,2]
[327413195,1716051040645,-500.0,0.00027397,2]
[327413196,1716051040654,-500.0,0.00027397,2]
[327413197,1716051040663,-519.95859158,0.00027397,2]
[327413198,1716051040672,-500.0,0.00027397,2]
[327413199,1716051040826,-500.0,0.00027397,2]
[327413200,1716051040835,-500.0,0.00027397,2]
[327413201,1716051040844,-500.0,0.00027397,2]
[327413203,1716051040853,-500.0,0.00027397,2]
[327413205,1716051040862,-151.0,0.00027397,7]
[327413207,1716051040870,-500.0,0.00027397,2]
[327413209,1716051040880,-500.0,0.00027397,2]
[327413211,1716051040889,-500.0,0.00027397,2]
[327413213,1716051040898,-500.0,0.00027397,2]
[327413215,1716051040907,-500.0,0.00027397,2]
[327413217,1716051040916,-500.0,0.00027397,2]
[327413219,1716051040926,-500.0,0.00027397,2]
[327413220,1716051040935,-500.0,0.00027397,2]
[327413221,1716051040943,-500.0,0.00027397,2]
[327413222,1716051040953,-500.0,0.00027397,2]
[327413223,1716051040964,-151.0,0.00027397,7]
[327413224,1716051040974,-500.0,0.00027397,2]
[327413225,1716051040985,-151.0,0.00027397,7]
[327413226,1716051040994,-151.0,0.00027397,7]
[327413227,1716051041003,-197.623084,0.00027397,7]
[327413228,1716051041012,-500.0,0.00027397,2]
[327413229,1716051041022,-500.0,0.00027397,2]
[327413230,1716051041031,-500.0,0.00027397,2]
[327413231,1716051041040,-500.0,0.00027397,2]
[327413232,1716051041049,-500.0,0.00027397,2]
[327413233,1716051041059,-500.0,0.00027397,2]
[327413234,1716051041067,-151.0,0.00027397,7]
[327413235,1716051041077,-151.0,0.00027397,7]
[327413236,1716051041087,-151.0,0.00027397,7]
[327413237,1716051041096,-151.0,0.00027397,7]
[327413238,1716051041105,-500.0,0.00027397,2]
[327413239,1716051041114,-261.58381036,0.00027397,2]
[327413240,1716051041123,-500.0,0.00027397,2]
[327413241,1716051041132,-505.32264611,0.00027397,2]
[327413242,1716051041141,-151.0,0.00027397,7]
[327413243,1716051041149,-500.0,0.00027397,2]
[327413244,1716051041159,-151.0,0.00027397,7]
[327413245,1716051041168,-151.0,0.00027397,7]
[327413246,1716051041177,-151.0,0.00027397,7]
[327413247,1716051041186,-150.0,0.00027397,2]
[327413248,1716051041195,-500.0,0.00027397,2]
[327413249,1716051041204,-500.0,0.00027397,2]
[327413250,1716051041214,-500.0,0.00027397,2]
[327413251,1716051041223,-500.0,0.00027397,2]
[327413252,1716051041232,-500.0,0.00027397,2]
[327413253,1716051041241,-151.0,0.00027397,7]
[327413254,1716051041250,-500.0,0.00027397,2]
[327413255,1716051041260,-151.0,0.00027397,7]
[327413256,1716051041270,-151.0,0.00027397,7]
[327413257,1716051041279,-151.0,0.00027397,7]
[327413258,1716051041288,-500.0,0.00027397,2]
[327413259,1716051041297,-583.73,0.00027397,2]
[327413260,1716051041306,-500.0,0.00027397,2]
[327413261,1716051041315,-500.0,0.00027397,2]
[327413262,1716051041325,-151.0,0.00027397,7]
[327413263,1716051041334,-151.0,0.00027397,7]
[327413264,1716051041343,-500.0,0.00027397,2]
[327413265,1716051041352,-500.0,0.00027397,2]
[327413266,1716051041361,-151.0,0.00027397,7]
[327413267,1716051041370,-151.0,0.00027397,7]
[327413268,1716051041379,-500.0,0.00027397,2]
[327413269,1716051041388,-151.0,0.00027397,7]
[327413270,1716051041396,-151.0,0.00027397,7]
[327413271,1716051041405,-500.0,0.00027397,2]
[327413272,1716051041414,-500.0,0.00027397,2]
[327413273,1716051041423,-500.0,0.00027397,2]
[327413274,1716051041432,-500.0,0.00027397,2]
[327413275,1716051041441,-500.0,0.00027397,2]
[327413276,1716051041455,-500.0,0.00027397,2]
[327413277,1716051041464,-356.58853798,0.00027397,2]
[327413278,1716051041473,-500.0,0.00027397,2]
[327413279,1716051041483,-151.0,0.00027397,7]
[327413280,1716051041493,-151.0,0.00027397,7]
[327413281,1716051041502,-151.0,0.00027397,7]
[327413282,1716051041512,-151.0,0.00027397,7]
[327413283,1716051041521,-500.0,0.00027397,2]
[327413284,1716051041530,-500.0,0.00027397,2]
[327413285,1716051041539,-500.0,0.00027397,2]
[327413286,1716051041549,-500.0,0.00027397,2]
[327413287,1716051041558,-500.0,0.00027397,2]
[327413288,1716051041567,-500.0,0.00027397,2]
[327413289,1716051041577,-151.0,0.00027397,7]
[327413290,1716051041586,-500.0,0.00027397,2]
[327413291,1716051041595,-500.0,0.00027397,2]
[327413292,1716051041604,-500.0,0.00027397,2]
[327413293,1716051041614,-151.0,0.00027397,7]
[327413294,1716051041623,-151.0,0.00027397,7]
[327413295,1716051041631,-151.0,0.00027397,7]
[327413296,1716051041640,-151.0,0.00027397,7]
[327413297,1716051041649,-500.0,0.00027397,2]
[327413298,1716051041658,-500.0,0.00027397,2]
[327413299,1716051041667,-500.0,0.00027397,2]
[327413300,1716051041676,-500.0,0.00027397,2]
[327413301,1716051041685,-151.0,0.00027397,7]
[327413302,1716051041694,-500.0,0.00027397,2]
[327413303,1716051041703,-500.0,0.00027397,2]
[327413304,1716051041711,-500.0,0.00027397,2]
[327413305,1716051041720,-500.0,0.00027397,2]
[327413306,1716051041729,-500.0,0.00027397,2]
[327413307,1716051041738,-500.0,0.00027397,2]
[327413308,1716051041747,-561.2889238,0.00027397,2]
[327413309,1716051041755,-500.0,0.00027397,2]
[327413310,1716051041764,-500.0,0.00027397,2]
[327413311,1716051041775,-506.26070198,0.00027397,2]
[327413312,1716051041784,-1320.18,0.00027397,2]
[327413313,1716051041793,-500.0,0.00027397,2]
[327413314,1716051041802,-151.0,0.00027397,7]
[327413315,1716051041811,-500.0,0.00027397,2]
[327413316,1716051041820,-500.0,0.00027397,2]
[327413317,1716051041829,-500.0,0.00027397,2]
[327413318,1716051041838,-500.0,0.00027397,2]
[327413319,1716051041847,-500.0,0.00027397,2]
[327413320,1716051041856,-500.0,0.00027397,2]
[327413321,1716051041866,-500.0,0.00027397,2]
[327413322,1716051041875,-500.0,0.00027397,2]
[327413323,1716051041884,-500.0,0.00027397,2]
[327413324,1716051041893,-500.0,0.00027397,2]
[327413325,1716051041904,-500.0,0.00027397,2]
[327413326,1716051041913,-500.0,0.00027397,2]
[327413327,1716051041923,-500.0,0.00027397,2]
[327413328,1716051041932,-500.0,0.00027397,2]
[327413329,1716051041945,-500.0,0.00027397,2]
[327413330,1716051041955,-500.0,0.00027397,2]
[327413331,1716051041965,-500.0,0.00027397,2]
[327413332,1716051041976,-500.0,0.00027397,2]
[327413333,1716051041985,-500.0,0.00027397,2]